fUSD/lending_fUSD_20250506
["ID","MTS","AMOUNT","RATE_DAILY","PERIOD"]
[360046981,1746516645050,-530.32,0.00019999,2]
[360046982,1746516645059,-450.0,0.00019999,2]
[360046983,1746516645068,-500.0,0.00019999,2]
[360046984,1746516645078,-450.0,0.00019999,2]
[360046985,1746516645087,-450.0,0.00019999,2]
[360046986,1746516645097,-450.0,0.00019999,2]
[360046987,1746516645106,-450.0,0.00019999,2]
[360046988,1746516645115,-450.0,0.00019999,2]
[360046989,1746516645125,-450.0,0.00019999,2]
[360046990,1746516645134,-450.0,0.00019999,2]
[360046991,1746516645144,-450.0,0.00019999,2]
[360046992,1746516645153,-450.0,0.00019999,2]
[360046993,1746516645163,-375.47400811,0.00019999,2]
[360046994,1746516645176,-326.37145534,0.00019999,2]
[360046995,1746516645185,-450.0,0.00019999,2]
[360046996,1746516645195,-450.0,0.00019999,2]
[360046997,1746516645204,-450.0,0.00019999,2]
[360046998,1746516645213,-450.0,0.00019999,2]
[360046999,1746516645223,-211.15839927,0.00019999,2]
[360047000,1746516645232,-450.0,0.00019999,2]
[360047001,1746516645242,-450.0,0.00019999,2]
[360047002,1746516645251,-185.41,0.00019999,2]
[360047003,1746516645261,-450.0,0.00019999,2]
[360047004,1746516645270,-1546.89,0.00019999,2]
[360047005,1746516645279,-1546.89,0.00019999,2]
[360047006,1746516645288,-1546.89,0.00019999,2]
[360047007,1746516645297,-1546.89,0.00019999,2]
[360047008,1746516645306,-1546.89,0.00019999,2]
[360047009,1746516645316,-1546.89,0.00019999,2]
[360047010,1746516645325,-1546.89,0.00019999,2]
[360047011,1746516645334,-1546.89,0.00019999,2]
[360047012,1746516645343,-1546.89,0.00019999,2]
[360047013,1746516645353,-1546.89,0.00019999,2]
[360047014,1746516645362,-1546.89,0.00019999,2]
[360047015,1746516645372,-1546.89,0.00019999,2]
[360047016,1746516645382,-1546.89,0.00019999,2]
[360047017,1746516645391,-1546.89,0.00019999,2]
[360047018,1746516645400,-1546.89,0.00019999,2]
[360047019,1746516645410,-1546.89,0.00019999,2]
[360047020,1746516645420,-1546.89,0.00019999,2]
[360047021,1746516645430,-1546.89,0.00019999,2]
[360047022,1746516645440,-1546.89,0.00019999,2]
[360047023,1746516645449,-1546.89,0.00019999,2]
[360047024,1746516645459,-1546.89,0.00019999,2]
[360047025,1746516645468,-1546.89,0.00019999,2]
[360047026,1746516645479,-1547.00076391,0.00019999,2]
[360047027,1746516645489,-455.69095936,0.00019999,2]
[360047028,1746516645498,-450.0,0.00019999,2]
[360047029,1746516645508,-450.0,0.00019999,2]
[360047030,1746516645518,-450.0,0.00019999,2]
[360047031,1746516645527,-586.08,0.00019999,2]
[360047032,1746516645537,-586.08,0.00019999,2]
[360047033,1746516645546,-586.08,0.00019999,2]
[360047034,1746516645556,-586.08,0.00019999,2]
[360047035,1746516645566,-586.08,0.00019999,2]
[360047036,1746516645579,-586.08,0.00019999,2]
[360047037,1746516645589,-586.08,0.00019999,2]
[360047038,1746516645598,-586.08,0.00019999,2]
[360047039,1746516645608,-586.08,0.00019999,2]
[360047040,1746516645617,-586.08,0.00019999,2]
[360047041,1746516645627,-450.0,0.00019999,2]
[360047042,1746516645636,-586.08,0.00019999,2]
[360047043,1746516645645,-450.0,0.00019999,2]
[360047044,1746516645654,-586.08,0.00019999,2]
[360047045,1746516645665,-586.08,0.00019999,2]
[360047046,1746516645675,-586.08,0.00019999,2]
[360047047,1746516645684,-586.08,0.00019999,2]
[360047048,1746516645693,-586.08,0.00019999,2]
[360047049,1746516645702,-586.08,0.00019999,2]
[360047050,1746516645711,-586.08,0.00019999,2]
[360047051,1746516645721,-586.08,0.00019999,2]
[360047052,1746516645730,-586.08,0.00019999,2]
[360047053,1746516645739,-586.08,0.00019999,2]
[360047054,1746516645748,-586.08,0.00019999,2]
[360047055,1746516645758,-586.26,0.00019999,2]
[360047056,1746516645767,-450.0,0.00019999,2]
[360047057,1746516645775,-475.0,0.00019999,2]
[360047058,1746516645785,-550.14,0.00019999,2]
[360047059,1746516645795,-450.0,0.00019999,2]
[360047060,1746516645804,-450.0,0.00019999,2]
[360047061,1746516645813,-450.0,0.00019999,2]
[360047062,1746516645823,-301.33309134,0.00019999,2]
[360047063,1746516645832,-450.0,0.00019999,2]
[360047064,1746516645842,-454.48,0.00019999,2]
[360047065,1746516645852,-218.1332456,0.00019999,2]
[360047066,1746516645861,-7549.09,0.00019999,2]
[360047067,1746516645872,-7549.09,0.00019999,2]
[360047068,1746516645881,-7549.09,0.00019999,2]
[360047069,1746516645890,-7549.09,0.00019999,2]
[360047070,1746516645899,-7549.09,0.00019999,2]
[360047071,1746516645908,-7549.09,0.00019999,2]
[360047072,1746516645919,-7549.09,0.00019999,2]
[360047073,1746516645928,-7549.09,0.00019999,2]
[360047074,1746516645937,-7549.09,0.00019999,2]
[360047075,1746516645946,-7549.09,0.00019999,2]
[360047076,1746516645955,-7549.09,0.00019999,2]
[360047077,1746516645965,-7549.09,0.00019999,2]
[360047078,1746516645974,-7549.09,0.00019999,2]
[360047079,1746516645984,-7549.09,0.00019999,2]
[360047080,1746516645994,-7549.09,0.00019999,2]
[360047081,1746516646003,-7549.09,0.00019999,2]
[360047082,1746516646012,-7549.09,0.00019999,2]
[360047083,1746516646021,-7549.09,0.00019999,2]
[360047084,1746516646031,-7549.09,0.00019999,2]
[360047085,1746516646040,-7549.09,0.00019999,2]
[360047086,1746516646049,-7549.09,0.00019999,2]
[360047087,1746516646058,-7549.1508,0.00019999,2]
[360047090,1746516646184,-69133.93173426,0.00019999,2]
[360047091,1746516646193,-450.0,0.00019999,2]
[360047092,1746516646204,-450.0,0.00019999,2]
[360047093,1746516646213,-450.0,0.00019999,2]
[360047094,1746516646222,-450.0,0.00019999,2]
[360047095,1746516646232,-450.0,0.00019999,2]
[360047096,1746516646241,-446.27742573,0.00019999,2]
[360047097,1746516646251,-500.0,0.00019999,2]
[360047098,1746516646260,-156.71932039,0.00019999,2]
[360047099,1746516646270,-681.0,0.00019999,2]
[360047100,1746516646279,-450.0,0.00019999,2]
[360047101,1746516646289,-450.0,0.00019999,2]
[360047102,1746516646300,-376.76412708,0.00019999,2]
[360047103,1746516646310,-423.11338859,0.00019999,2]
[360047104,1746516646319,-450.0,0.00019999,2]
[360047105,1746516646329,-450.0,0.00019999,2]
[360047106,1746516646338,-450.0,0.00019999,2]
[360047107,1746516646348,-388.25,0.00019999,2]
[360047108,1746516646357,-450.0,0.00019999,2]
[360047109,1746516646367,-450.0,0.00019999,2]
[360047110,1746516646376,-450.0,0.00019999,2]
[360047111,1746516646386,-450.0,0.00019999,2]
[360047112,1746516646395,-450.0,0.00019999,2]
[360047113,1746516646405,-450.0,0.00019999,2]
[360047114,1746516646415,-450.0,0.00019999,2]
[360047115,1746516646424,-450.0,0.00019999,2]
[360047116,1746516646434,-450.0,0.00019999,2]
[360047117,1746516646443,-450.0,0.00019999,2]
[360047118,1746516646452,-157.67,0.00019999,2]
[360047119,1746516646461,-255.98716498,0.00019999,2]
[360047120,1746516646470,-191.92555957,0.00019999,2]
[360047121,1746516646479,-450.0,0.00019999,2]
[360047122,1746516646488,-500.0,0.00019999,2]
[360047123,1746516646498,-285.38795212,0.00019999,2]
[360047124,1746516646508,-500.0,0.00019999,2]
[360047125,1746516646517,-297.47,0.00019999,2]
[360047126,1746516646526,-150.0,0.00019999,2]
[360047127,1746516646536,-450.0,0.00019999,2]
[360047128,1746516646545,-166.01937314,0.00019999,2]
[360047129,1746516646555,-150.0,0.00019999,2]
[360047130,1746516646564,-450.0,0.00019999,2]
[360047131,1746516646575,-450.0,0.00019999,2]
[360047132,1746516646587,-450.0,0.00019999,2]
[360047133,1746516646596,-500.0,0.00019999,2]
[360047134,1746516646605,-450.0,0.00019999,2]
[360047135,1746516646615,-450.0,0.00019999,2]
[360047136,1746516646624,-450.0,0.00019999,2]
[360047137,1746516646636,-450.0,0.00019999,2]
[360047138,1746516646646,-204.15193418,0.00019999,2]
[360047139,1746516646657,-450.0,0.00019999,2]
[360047140,1746516646667,-180.06924665,0.00019999,2]
[360047141,1746516646676,-450.0,0.00019999,2]
[360047142,1746516646685,-450.0,0.00019999,2]
[360047143,1746516646694,-554.15,0.00019999,2]
[360047144,1746516646703,-551.5,0.00019999,2]
[360047145,1746516646713,-450.0,0.00019999,2]
[360047146,1746516646722,-450.0,0.00019999,2]
[360047147,1746516646731,-450.0,0.00019999,2]
[360047148,1746516646741,-450.0,0.00019999,2]
[360047149,1746516646750,-450.0,0.00019999,2]
[360047150,1746516646758,-450.0,0.00019999,2]
[360047151,1746516646767,-450.0,0.00019999,2]
[360047152,1746516646776,-450.0,0.00019999,2]
[360047154,1746516646785,-450.0,0.00019999,2]
[360047155,1746516646795,-450.0,0.00019999,2]
[360047157,1746516646804,-450.0,0.00019999,2]
[360047158,1746516646813,-450.0,0.00019999,2]
[360047159,1746516646822,-450.0,0.00019999,2]
[360047160,1746516646831,-450.0,0.00019999,2]
[360047161,1746516646840,-450.0,0.00019999,2]
[360047162,1746516646849,-212.54,0.00019999,2]
[360047163,1746516646858,-450.0,0.00019999,2]
[360047164,1746516646867,-450.0,0.00019999,2]
[360047165,1746516646876,-450.0,0.00019999,2]
[360047166,1746516646886,-450.0,0.00019999,2]
[360047167,1746516646895,-450.0,0.00019999,2]
[360047168,1746516646904,-450.0,0.00019999,2]
[360047169,1746516646915,-429.98,0.00019999,2]
[360047170,1746516646924,-450.0,0.00019999,2]
[360047171,1746516646934,-450.0,0.00019999,2]
[360047172,1746516646944,-450.0,0.00019999,2]
[360047173,1746516646954,-450.0,0.00019999,2]
[360047174,1746516646963,-500.0,0.00019999,2]
[360047175,1746516646972,-450.0,0.00019999,2]
[360047176,1746516646981,-450.0,0.00019999,2]
[360047177,1746516646991,-321.48,0.00019999,2]
[360047178,1746516647000,-450.0,0.00019999,2]
[360047179,1746516647010,-450.0,0.00019999,2]
[360047180,1746516647019,-450.0,0.00019999,2]
[360047181,1746516647028,-450.0,0.00019999,2]
[360047182,1746516647037,-450.0,0.00019999,2]
[360047183,1746516647046,-450.0,0.00019999,2]
[360047184,1746516647056,-450.0,0.00019999,2]
[360047185,1746516647066,-353.16,0.00019999,2]
[360047186,1746516647075,-450.0,0.00019999,2]
[360047187,1746516647084,-498.3542331,0.00019999,2]
[360047188,1746516647094,-554.64211063,0.00019999,2]
[360047189,1746516647103,-450.0,0.00019999,2]
[360047190,1746516647112,-210.20511169,0.00019999,2]
[360047191,1746516647121,-151.0,0.00019999,2]
[360047192,1746516647130,-450.0,0.00019999,2]
[360047193,1746516647139,-450.0,0.00019999,2]
[360047194,1746516647148,-450.0,0.00019999,2]
[360047195,1746516647157,-450.0,0.00019999,2]
[360047196,1746516647166,-450.0,0.00019999,2]
[360047197,1746516647175,-450.0,0.00019999,2]
[360047198,1746516647185,-450.0,0.00019999,2]
[360047199,1746516647194,-450.0,0.00019999,2]
[360047200,1746516647204,-450.0,0.00019999,2]
[360047201,1746516647213,-450.0,0.00019999,2]
[360047202,1746516647222,-450.0,0.00019999,2]
[360047203,1746516647231,-450.0,0.00019999,2]
[360047204,1746516647240,-280.75,0.00019999,2]
[360047205,1746516647249,-450.0,0.00019999,2]
[360047206,1746516647258,-450.0,0.00019999,2]
[360047207,1746516647267,-450.0,0.00019999,2]
[360047208,1746516647277,-450.0,0.00019999,2]
[360047209,1746516647286,-450.0,0.00019999,2]
[360047210,1746516647296,-450.0,0.00019999,2]
[360047211,1746516647305,-450.0,0.00019999,2]
[360047212,1746516647315,-450.0,0.00019999,2]
[360047213,1746516647324,-450.0,0.00019999,2]
[360047214,1746516647333,-450.0,0.00019999,2]
[360047215,1746516647343,-450.0,0.00019999,2]
[360047216,1746516647352,-450.0,0.00019999,2]
[360047217,1746516647361,-466.64,0.00019999,2]
[360047218,1746516647370,-450.0,0.00019999,2]
[360047219,1746516647379,-450.0,0.00019999,2]
[360047220,1746516647388,-450.0,0.00019999,2]
[360047221,1746516647397,-450.0,0.00019999,2]
[360047222,1746516647407,-450.0,0.00019999,2]
[360047223,1746516647416,-450.0,0.00019999,2]
[360047224,1746516647425,-450.0,0.00019999,2]
[360047225,1746516647433,-450.0,0.00019999,2]
[360047226,1746516647444,-450.0,0.00019999,2]
[360047227,1746516647456,-450.0,0.00019999,2]
[360047228,1746516647465,-450.0,0.00019999,2]
[360047229,1746516647475,-450.0,0.00019999,2]
[360047230,1746516647484,-483.73890375,0.00019999,2]
[360047231,1746516647493,-368.26,0.00019999,2]
[360047232,1746516647503,-2557.75,0.00019999,2]
[360047233,1746516647512,-2557.75,0.00019999,2]
[360047234,1746516647521,-2557.75,0.00019999,2]
[360047235,1746516647530,-2557.75,0.00019999,2]
[360047236,1746516647539,-2557.75,0.00019999,2]
[360047237,1746516647548,-2557.75,0.00019999,2]
[360047238,1746516647557,-2557.75,0.00019999,2]
[360047239,1746516647566,-2557.75,0.00019999,2]
[360047240,1746516647578,-2557.75,0.00019999,2]
[360047241,1746516647588,-159.8172007,0.00019999,2]
[360047242,1746516647596,-2557.75,0.00019999,2]
[360047243,1746516647606,-2557.75,0.00019999,2]
[360047244,1746516647615,-822.49,0.00019999,2]
[360047245,1746516647624,-2557.75,0.00019999,2]
[360047246,1746516647633,-822.49,0.00019999,2]
[360047247,1746516647643,-2557.75,0.00019999,2]
[360047248,1746516647651,-822.49,0.00019999,2]
[360047249,1746516647661,-2557.75,0.00019999,2]
[360047250,1746516647672,-822.49,0.00019999,2]
[360047251,1746516647682,-2557.75,0.00019999,2]
[360047252,1746516647691,-822.49,0.00019999,2]
[360047253,1746516647700,-2557.75,0.00019999,2]
[360047254,1746516647710,-822.49,0.00019999,2]
[360047255,1746516647720,-822.49,0.00019999,2]
[360047256,1746516647731,-2557.75,0.00019999,2]
[360047257,1746516647740,-450.0,0.00019999,2]
[360047258,1746516647749,-822.49,0.00019999,2]
[360047259,1746516647759,-2557.75,0.00019999,2]
[360047260,1746516647770,-599.65746,0.00019999,2]
[360047261,1746516647779,-822.49,0.00019999,2]
[360047262,1746516647789,-2557.75,0.00019999,2]
[360047263,1746516647798,-4015.0,0.0002,2]
[360047264,1746516647807,-153.0,0.0002,2]
[360047265,1746516647816,-1140.0,0.0002,2]
[360047266,1746516647825,-931.0,0.0002,2]
[360047267,1746516647834,-511.06539967,0.0002,2]
[360047268,1746516647843,-74453.2647384,0.0002,2]
[360047269,1746516647853,-453179.17603466,0.0002,2]
[360047270,1746516647863,-9417.55,0.0002,2]
[360047271,1746516647872,-671597.83195675,0.0002,2]
[360047272,1746516647881,-974644.64957576,0.0002,2]
[360047273,1746516647891,-1394251.62823525,0.0002,2]
[360047274,1746516647900,-1702178.96370376,0.0002,2]
[360047275,1746516647910,-37502.32,0.0002,2]
[360047276,1746516647919,-386.0,0.0002,2]
[360047277,1746516647929,-4275246.69747533,0.0002,2]
[360047278,1746516647996,-822.49,0.00019999,2]
[360047279,1746516648006,-2557.75,0.00019999,2]
[360047280,1746516648015,-396484.0614365,0.0002,2]
[360047281,1746516648129,-450.0,0.00019998,2]
[360047282,1746516648139,-319.26968033,0.00019998,2]
[360047283,1746516648156,-130.73031967,0.00019998,2]
[360047284,1746516648167,-773.84541198,0.00019999,2]
[360047285,1746516648178,-48.64458802,0.00019999,2]
[360047286,1746516648188,-2557.75,0.00019999,2]
[360047287,1746516648197,-822.49,0.00019999,2]
[360047288,1746516648207,-450.0,0.00019999,2]
[360047289,1746516648216,-822.49,0.00019999,2]
[360047290,1746516648225,-136.76552115,0.00019999,2]
[360047291,1746516648237,-1178.25700784,0.00019999,2]
[360047292,1746516648248,-1242.93977101,0.00019999,2]
[360047293,1746516648257,-450.0,0.00019999,2]
[360047294,1746516648267,-822.49,0.00019999,2]
[360047295,1746516648276,-822.49,0.00019999,2]
[360047296,1746516648286,-822.49,0.00019999,2]
[360047297,1746516648296,-822.49,0.00019999,2]
[360047298,1746516648307,-822.49,0.00019999,2]
[360047299,1746516648316,-822.49,0.00019999,2]
[360047300,1746516648325,-822.49,0.00019999,2]
[360047301,1746516648335,-822.69168789,0.00019999,2]
[360047302,1746516648344,-33629.48298167,0.0002,2]
[360047303,1746516660426,152.41,0.000298,31]
[360047304,1746516660490,152.41,0.000298,31]
[360047305,1746516660553,152.41,0.000298,31]
[360047306,1746516660616,152.41,0.000298,31]
[360047307,1746516660688,152.41,0.000298,31]
[360047308,1746516660740,152.41,0.000298,31]
[360047310,1746516699671,1000.0,0.00019154,2]
[360047311,1746516747834,-200.0,0.00019886,2]
[360047312,1746516747872,-89.68722844,0.00019886,2]
[360047313,1746516784882,486.5,0.0003,30]
[360047351,1746516980109,569.84,0.00017118,2]
[360047353,1746516980323,569.84,0.00019382,2]
[360047363,1746517033874,52661.0,0.00019,2]
[360047364,1746517091214,250.0,0.00017,2]
[360047365,1746517092308,300.0,0.00019,2]
[360047370,1746517266345,152.42,0.000298,31]
[360047371,1746517266402,152.42,0.000298,31]
[360047372,1746517266463,152.42,0.000298,31]
[360047373,1746517266527,152.42,0.000298,31]
[360047374,1746517266587,152.42,0.000298,31]
[360047375,1746517266643,152.42,0.000298,31]
[360047376,1746517266703,152.42,0.000298,31]
[360047377,1746517266767,152.42,0.000298,31]
[360047378,1746517289277,161.87,0.00019015,2]
[360047379,1746517289489,161.87,0.00019029,2]
[360047380,1746517289679,161.87,0.00019043,2]
[360047381,1746517290056,161.87,0.00019056,2]
[360047382,1746517290110,161.87,0.0001907,2]
[360047383,1746517290332,161.87,0.00019083,2]
[360047384,1746517290736,161.87,0.00019097,2]
[360047385,1746517290939,161.87,0.0001911,2]
[360047391,1746517375739,5859.7,0.0003,30]
[360047392,1746517409992,17979.49,0.00019013,2]
[360047393,1746517473990,2087.27,0.0003,30]
[360047416,1746517831525,-250.0,0.00019673,2]
[360047417,1746517831534,-200.0,0.00019673,2]
[360047418,1746517831543,-200.0,0.000197,2]
[360047419,1746517831553,-1200.0,0.00019885,2]
[360047420,1746517831562,-300.0,0.00019885,2]
[360047421,1746517831571,-300.0,0.00019885,2]
[360047422,1746517831581,-13923.28077156,0.00019886,2]
[360047423,1746517831590,-287.2497,0.00019886,2]
[360047424,1746517831600,-807.001,0.00019898,2]
[360047425,1746517831609,-850.0,0.00019899,2]
[360047426,1746517831619,-224.9161945,0.000199,2]
[360047427,1746517831628,-7040.13815936,0.000199,2]
[360047428,1746517831640,-331.14851368,0.000199,2]
[360047429,1746517831651,-1828.0,0.000199,2]
[360047430,1746517831662,-2210.41379545,0.000199,2]
[360047431,1746517831673,-736.159057,0.000199,2]
[360047432,1746517831684,-354.14047451,0.000199,2]
[360047433,1746517831693,-611.22952549,0.000199,2]
[360047434,1746517831712,-6245.22611917,0.000199,2]
[360047435,1746517831721,-166.0610156,0.000199,2]
[360047436,1746517831730,-1000.0,0.000199,2]
[360047437,1746517831739,-170.1164078,0.000199,2]
[360047438,1746517831748,-12721.27304456,0.000199,2]
[360047439,1746517831757,-150.0,0.00019918,7]
[360047440,1746517831767,-182.78162332,0.00019973,2]
[360047441,1746517831783,-317.21837668,0.00019973,2]
[360047443,1746517831792,-34.70737033,0.00019974,2]
[360047600,1746517837488,-172.69262967,0.00019974,2]
[360047601,1746517837497,-232.194569,0.00019986,2]
[360047602,1746517837507,-966.9892942,0.00019986,2]
[360047603,1746517837516,-2745.55045168,0.00019986,2]
[360047604,1746517837622,-7055.64700632,0.00019986,2]
[360047605,1746517837632,-668.65185757,0.00019988,2]
[360047606,1746517837642,-151.25827335,0.00019988,2]
[360047607,1746517837651,-486.24,0.00019989,2]
[360047608,1746517837661,-500.0,0.00019995,2]
[360047609,1746517837670,-500.0,0.00019995,2]
[360047610,1746517837679,-500.0,0.00019995,2]
[360047611,1746517837688,-509.35096226,0.00019995,2]
[360047612,1746517837697,-500.0,0.00019995,2]
[360047613,1746517837707,-152.86221867,0.00019995,2]
[360047614,1746517837717,-450.0,0.00019996,2]
[360047615,1746517837726,-450.0,0.00019996,2]
[360047616,1746517837735,-557.91948827,0.00019996,2]
[360047617,1746517837744,-450.0,0.00019996,2]
[360047618,1746517837753,-450.0,0.00019996,2]
[360047619,1746517837762,-472.18404111,0.00019996,2]
[360047620,1746517837771,-450.0,0.00019996,2]
[360047621,1746517837781,-268.21952982,0.00019996,2]
[360047622,1746517837790,-450.0,0.00019996,2]
[360047623,1746517837799,-1290.338,0.00019996,2]
[360047625,1746517837808,-450.0,0.00019996,2]
[360047627,1746517837817,-450.0,0.00019996,2]
[360047629,1746517837826,-450.0,0.00019996,2]
[360047630,1746517837835,-450.0,0.00019996,2]
[360047631,1746517837843,-453.21425731,0.00019996,2]
[360047632,1746517837852,-450.0,0.00019996,2]
[360047633,1746517837861,-450.0,0.00019996,2]
[360047634,1746517837870,-450.0,0.00019996,2]
[360047635,1746517837879,-502.36275249,0.00019996,2]
[360047636,1746517837888,-30.92669581,0.00019996,2]
[360047637,1746517837900,-419.07330419,0.00019996,2]
[360047638,1746517837909,-450.0,0.00019996,2]
[360047639,1746517837919,-497.58080491,0.00019996,2]
[360047640,1746517837928,-450.0,0.00019996,2]
[360047642,1746517837937,-451.26,0.00019996,2]
[360047644,1746517837946,-184.31145505,0.00019996,2]
[360047646,1746517837955,-450.0,0.00019996,2]
[360047649,1746517837964,-450.0,0.00019996,2]
[360047650,1746517837972,-450.0,0.00019996,2]
[360047652,1746517837982,-250.0,0.00019996,2]
[360047654,1746517837991,-450.0,0.00019996,2]
[360047656,1746517838000,-341.48866269,0.00019996,2]
[360047658,1746517838012,-108.51133731,0.00019996,2]
[360047660,1746517838021,-176.04349277,0.00019996,2]
[360047664,1746517839698,-273.95650723,0.00019996,2]
[360047665,1746517839709,-450.0,0.00019996,2]
[360047666,1746517839718,-290.81333007,0.00019996,2]
[360047667,1746517839727,-450.0,0.00019996,2]
[360047668,1746517839738,-312.1,0.00019996,2]
[360047669,1746517839747,-450.0,0.00019996,2]
[360047670,1746517839757,-450.0,0.00019996,2]
[360047671,1746517839767,-469.44,0.00019996,2]
[360047672,1746517839777,-368.6613271,0.00019996,2]
[360047673,1746517839786,-450.0,0.00019996,2]
[360047674,1746517839795,-450.0,0.00019996,2]
[360047675,1746517839805,-450.0,0.00019996,2]
[360047676,1746517839815,-450.0,0.00019996,2]
[360047677,1746517839824,-450.0,0.00019996,2]
[360047678,1746517839834,-689.99,0.00019996,2]
[360047679,1746517839843,-450.0,0.00019996,2]
[360047680,1746517839852,-450.0,0.00019996,2]
[360047681,1746517839862,-450.0,0.00019996,2]
[360047682,1746517839871,-450.0,0.00019996,2]
[360047683,1746517839881,-450.0,0.00019996,2]
[360047684,1746517839892,-450.0,0.00019996,2]
[360047685,1746517839902,-450.0,0.00019996,2]
[360047686,1746517839912,-450.0,0.00019996,2]
[360047687,1746517839922,-450.0,0.00019996,2]
[360047688,1746517839932,-450.0,0.00019996,2]
[360047689,1746517839942,-450.0,0.00019996,2]
[360047690,1746517839952,-450.0,0.00019996,2]
[360047691,1746517839961,-450.0,0.00019996,2]
[360047692,1746517839971,-450.0,0.00019996,2]
[360047693,1746517839980,-450.0,0.00019996,2]
[360047694,1746517839990,-403.71340444,0.00019996,2]
[360047695,1746517839999,-450.0,0.00019996,2]
[360047696,1746517840009,-450.0,0.00019996,2]
[360047697,1746517840019,-450.0,0.00019996,2]
[360047698,1746517840028,-450.0,0.00019996,2]
[360047699,1746517840038,-450.0,0.00019998,2]
[360047700,1746517840047,-475.80056671,0.00019998,2]
[360047701,1746517840056,-450.0,0.00019998,2]
[360047702,1746517840066,-394.47,0.00019998,2]
[360047703,1746517840075,-450.0,0.00019998,2]
[360047704,1746517840084,-562.84266766,0.00019998,2]
[360047705,1746517840094,-450.0,0.00019998,2]
[360047706,1746517840103,-535.35702097,0.00019998,2]
[360047707,1746517840113,-541.51,0.00019998,2]
[360047708,1746517840122,-450.0,0.00019998,2]
[360047709,1746517840132,-450.0,0.00019998,2]
[360047710,1746517840142,-450.0,0.00019998,2]
[360047711,1746517840152,-501.73368094,0.00019998,2]
[360047712,1746517840161,-450.0,0.00019998,2]
[360047713,1746517840171,-450.0,0.00019998,2]
[360047714,1746517840180,-465.97249816,0.00019998,2]
[360047715,1746517840190,-450.0,0.00019998,2]
[360047716,1746517840199,-514.65599308,0.00019998,2]
[360047717,1746517840208,-450.0,0.00019998,2]
[360047718,1746517840218,-450.0,0.00019998,2]
[360047719,1746517840227,-450.0,0.00019998,2]
[360047720,1746517840236,-450.0,0.00019998,2]
[360047721,1746517840246,-450.0,0.00019998,2]
[360047722,1746517840255,-450.0,0.00019998,2]
[360047723,1746517840264,-450.0,0.00019998,2]
[360047724,1746517840273,-488.89732393,0.00019998,2]
[360047725,1746517840283,-450.0,0.00019998,2]
[360047726,1746517840292,-491.71225383,0.00019998,2]
[360047727,1746517840301,-450.0,0.00019998,2]
[360047728,1746517840311,-440.0,0.00019998,2]
[360047729,1746517840320,-329.84,0.00019998,2]
[360047730,1746517840330,-551.72601071,0.00019998,2]
[360047731,1746517840339,-450.0,0.00019998,2]
[360047732,1746517840352,-529.04657049,0.00019998,2]
[360047733,1746517840361,-450.0,0.00019998,2]
[360047734,1746517840370,-450.0,0.00019998,2]
[360047735,1746517840380,-532.75276435,0.00019998,2]
[360047736,1746517840391,-450.0,0.00019998,2]